bitfinex/quotes_SOLUSD_20251216
["timestamp","ask_amount","ask_price","bid_price","bid_amount"]
[1765844273476,0.66,127.83,127.8,74.84990639]
[1765844273682,17.06250299,127.84,127.81,12.94953903]
[1765844273896,16.40250299,127.84,127.81,12.94953903]
[1765844274065,16.40250299,127.84,127.82,5.12545498]
[1765844274688,17.06250299,127.84,127.82,5.12545498]
[1765844274857,17.06250299,127.84,127.82,4.41545498]
[1765844276184,17.06250299,127.84,127.81,12.94953903]
[1765844276683,17.06250299,127.84,127.81,8.53408405]
[1765844276891,0.66,127.83,127.8,69.72445441]
[1765844277075,0.66,127.83,127.8,66.31545498]
[1765844277382,0.66,127.83,127.8,74.14017135]
[1765844277568,0.66,127.83,127.8,74.85017135]
[1765844279783,13.0470912,127.81,127.78,61.9]
[1765844279988,13.0470912,127.81,127.79,0.71]
[1765844280367,13.0470912,127.81,127.79,5.12545498]
[1765844281092,41.08732376,127.83,127.79,5.12545498]
[1765844281298,0.66,127.82,127.79,5.12545498]
[1765844281594,0.66,127.82,127.79,0.71]
[1765844281787,0.66,127.82,127.76,61.9]
[1765844281788,44.84908764,127.8,127.76,61.9]
[1765844281976,40.43363266,127.8,127.75,13.0530721]
[1765844282177,0.69,127.79,127.75,8.63761712]
[1765844282378,40.43363266,127.8,127.77,4.41545498]
[1765844282379,8.58,127.78,127.77,4.41545498]
[1765844282680,8.58,127.78,127.76,5.13545498]
[1765844283072,8.58,127.78,127.77,4.41545498]
[1765844283290,8.58,127.78,127.77,5.13545498]
[1765844283590,8.58,127.78,127.77,4.41545498]
[1765844284789,8.58,127.78,127.76,5.13545498]
[1765844285196,8.58,127.78,127.76,0.72]
[1765844285392,8.58,127.78,127.76,12.96258376]
[1765844285593,8.58,127.78,127.76,8.04712878]
[1765844285783,8.58,127.78,127.76,12.46258376]
[1765844286502,8.58,127.78,127.76,74.36258376]
[1765844289170,8.58,127.78,127.77,4.41545498]
[1765844289374,8.58,127.78,127.77,5.13545498]
[1765844289594,8.58,127.78,127.77,4.41545498]
[1765844289775,17.09631872,127.78,127.76,61.9]
[1765844289976,0.69,127.77,127.76,66.31545498]
[1765844290280,0.69,127.77,127.75,0.1]
[1765844290281,0.69,127.77,127.75,4.51545498]
[1765844290776,17.09631872,127.78,127.76,4.41545498]
[1765844291494,8.58,127.78,127.77,4.41545498]
[1765844291689,8.58,127.78,127.77,5.13545498]
[1765844291978,13.7370912,127.82,127.77,5.13545498]
[1765844291979,8.58,127.82,127.77,5.13545498]
[1765844292202,8.58,127.82,127.81,4.41545498]
[1765844296202,9.27,127.82,127.81,4.41545498]
[1765844297684,8.58,127.82,127.81,4.41545498]
[1765844298910,32.60325811,127.84,127.81,5.13545498]
[1765844298911,16.40257764,127.84,127.81,5.13545498]
[1765844299082,16.40257764,127.84,127.76,8.58]
[1765844299083,16.40257764,127.84,127.82,5.13545498]
[1765844299285,16.40257764,127.84,127.82,4.41545498]
[1765844299484,17.09257764,127.84,127.82,4.41545498]
[1765844301602,0.69,127.83,127.81,4.41545498]
[1765844301802,0.69,127.83,127.82,4.41545498]
[1765844304521,17.09257764,127.84,127.82,4.41545498]
[1765844304822,0.69,127.83,127.82,4.41545498]
[1765844305317,0.69,127.83,127.82,3.91545498]
[1765844305511,0.69,127.83,127.82,2.82545233]
[1765844307100,17.09257764,127.84,127.82,2.82545233]
[1765844308725,0.69,127.83,127.82,2.82545233]
[1765844309222,17.09257764,127.84,127.82,2.82545233]
[1765844310533,142.59121973,127.91,127.83,3.54545233]
[1765844310534,23.64239993,127.88,127.83,3.54545233]
[1765844310707,7.82015307,127.88,127.87,2.82545233]
[1765844311022,8.58,127.88,127.87,2.82545233]
[1765844311801,8.58,127.88,127.87,3.49545233]
[1765844311997,29.03416796,127.92,127.87,11.31589496]
[1765844312238,8.58,127.91,127.9,2.82545233]
[1765844312606,8.58,127.92,127.9,3.53545233]
[1765844312826,8.58,127.92,127.91,2.82545233]
[1765844314728,8.58,127.94,127.91,11.35344935]
[1765844314932,8.58,127.94,127.93,2.82545233]
[1765844315952,0.2,127.95,127.93,3.53545233]
[1765844316106,0.2,127.95,127.94,3.53545233]
[1765844317640,0.2,127.95,127.94,11.35161615]
[1765844326149,0.2,127.95,127.94,7.81616382]
[1765844326332,0.2,127.95,127.94,10.63454033]
[1765844326538,0.2,127.95,127.94,2.81837651]
[1765844326735,0.88,127.95,127.93,2.81837651]
[1765844326945,0.2,127.95,127.94,2.81837651]
[1765844327334,0.88,127.95,127.94,2.81837651]
[1765844328856,0.88,127.95,127.93,2.81837651]
[1765844329263,0.2,127.95,127.94,3.52837651]
[1765844329735,0.2,127.95,127.94,12.10837651]
[1765844329939,0.2,127.98,127.94,74.00837651]
[1765844330151,0.2,127.98,127.97,2.81837651]
[1765844330547,0.2,127.98,127.97,3.52837651]
[1765844330728,0.88,127.98,127.97,2.81837651]
[1765844330929,0.88,127.98,127.96,2.81837651]
[1765844331351,0.68,127.97,127.94,2.81837651]
[1765844331552,12.07837651,127.97,127.92,10.63554184]
[1765844332029,0.68,127.96,127.93,2.81837651]
[1765844332429,0.68,127.96,127.91,8.52761944]
[1765844332657,13.0470912,127.95,127.91,10.63599595]
[1765844332932,13.0470912,127.95,127.92,2.81837651]
[1765844333154,0.68,127.94,127.92,2.81837651]
[1765844333643,0.68,127.94,127.92,10.63574268]
[1765844334035,8.49624044,127.94,127.91,7.81773114]
[1765844334245,0.68,127.94,127.91,10.63610765]
[1765844334445,0.68,127.94,127.92,2.81837651]
[1765844335371,0.68,127.94,127.91,7.81773114]
[1765844335563,0.68,127.94,127.92,2.81837651]
[1765844335956,20.86287044,127.95,127.92,2.81837651]
[1765844336271,9.26,127.96,127.94,2.81837651]
[1765844336668,0.2,127.98,127.95,3.52837651]
[1765844336975,0.2,127.98,127.97,2.81837651]
[1765844337159,0.2,127.98,127.96,2.81837651]
[1765844338074,8.69373402,127.98,127.96,2.81837651]
[1765844338942,0.68,127.97,127.96,2.81837651]
[1765844339475,0.68,127.97,127.95,10.63388486]
[1765844339656,17.07448375,127.97,127.92,72.53547149]
[1765844339977,17.07448375,127.97,127.93,10.63506371]
[1765844340277,17.07448375,127.97,127.95,2.81837651]
[1765844340278,9.26,127.97,127.95,2.81837651]
[1765844341375,9.26,127.97,127.96,2.81837651]
[1765844341563,9.26,127.97,127.95,2.81837651]
[1765844341761,9.26,127.97,127.96,2.81837651]
[1765844343368,0.68,127.97,127.96,2.81837651]
[1765844344277,8.49437507,127.97,127.95,2.81837651]
[1765844344971,0.68,127.97,127.95,2.81837651]
[1765844346990,8.49447039,127.97,127.94,61.9]
[1765844347355,8.01401946,127.98,127.95,2.81837651]
[1765844347683,0.2,127.98,127.96,2.81837651]
[1765844347885,8.70373498,127.98,127.96,2.81837651]
[1765844348381,0.69,127.97,127.95,10.63391649]
[1765844348691,0.69,127.97,127.95,2.81837651]
[1765844349369,0.69,127.97,127.94,64.71837651]
[1765844349570,0.69,127.97,127.94,61.9]
[1765844349768,8.58,127.96,127.94,61.9]
[1765844350258,17.08517997,127.96,127.94,61.9]
[1765844350459,0.69,127.95,127.94,61.9]
[1765844350879,16.39517997,127.96,127.94,61.9]
[1765844351094,17.08517997,127.96,127.94,61.9]
[1765844351788,17.08517997,127.96,127.94,2.81837651]
[1765844355265,17.28399562,127.98,127.95,3.47837651]
[1765844355466,9.47,127.98,127.96,2.81837651]
[1765844355998,0.2,127.98,127.97,3.47837651]
[1765844357390,0.2,127.98,127.97,11.29270799]
[1765844357564,0.89,127.98,127.97,2.81837651]
[1765844358288,8.70372089,127.98,127.94,7.81586843]
[1765844358470,0.2,127.98,127.95,0.66]
[1765844358676,0.2,127.98,127.97,10.63270799]
[1765844359076,0.2,127.98,127.97,11.29270799]
[1765844359488,0.2,127.98,127.97,10.63270799]
[1765844359684,0.2,127.98,127.97,11.29270799]
[1765844360594,0.2,127.98,127.97,10.63270799]
[1765844360790,0.2,127.98,127.97,7.81433148]
[1765844360976,0.2,127.98,127.97,10.63270799]
[1765844361571,0.2,127.98,127.97,11.29270799]
[1765844364976,0.2,127.98,127.97,8.47433148]
[1765844365175,0.2,127.98,127.97,11.29270799]
[1765844366583,0.2,127.98,127.97,72.53270799]
[1765844367399,0.2,127.98,127.97,74.11810144]
[1765844368105,0.89,127.98,127.97,61.9]
[1765844368392,0.2,127.98,127.97,61.9]
[1765844368794,0.89,127.98,127.97,61.9]
[1765844369006,8.70372089,127.98,127.97,61.9]
[1765844370398,0.89,127.98,127.97,61.9]
[1765844370574,0.2,127.98,127.97,61.9]
[1765844371204,0.2,127.98,127.97,4.40376996]
[1765844371898,0.2,127.98,127.97,74.81810144]
[1765844372101,0.2,127.98,127.97,83.39810144]
[1765844373797,0.2,127.98,127.97,87.8018714]
[1765844374790,0.2,127.98,127.97,83.39810144]
[1765844375191,0.2,127.98,127.97,87.8018714]
[1765844375386,0.2,128.01,127.97,155.21930243]
[1765844375692,0.2,128.01,127.98,5.11376996]
[1765844375899,0.2,128.01,128.0,17.45086116]
[1765844376293,0.2,128.01,128.0,18.16086116]
[1765844376586,0.2,128.01,128.0,25.97336116]
[1765844377701,0.2,128.01,128.0,87.87336116]
[1765844378905,0.2,128.03,128.01,8.80994492]
[1765844379111,1e-08,128.03,128.02,21.77371488]
[1765844379409,1e-08,128.03,128.02,22.48371488]
[1765844380582,1e-08,128.03,128.02,43.34208556]
[1765844381007,1e-08,128.03,128.02,34.53214064]
[1765844381217,1e-08,128.03,128.02,25.26214064]
[1765844381503,1e-08,128.03,128.02,7.81127948]
[1765844381893,0.69000001,128.03,128.02,7.81127948]
[1765844382096,1e-08,128.03,128.02,7.81127948]
[1765844382308,1e-08,128.03,128.02,12.92504944]
[1765844384710,1e-08,128.03,128.02,74.82504944]
[1765844388284,0.69000001,128.03,128.02,74.11504944]
[1765844388483,1e-08,128.03,128.02,74.11504944]
[1765844391901,0.69000001,128.03,128.02,61.9]
[1765844392502,0.69000001,128.03,128.02,69.71127948]
[1765844393413,0.69000001,128.03,128.02,7.81127948]
[1765844393613,0.69000001,128.03,128.01,12.21536501]
[1765844394117,0.69000001,128.03,128.01,7.81159505]
[1765844399127,8.50074855,128.03,128.0,69.71221668]
[1765844399498,0.69,128.02,128.0,69.71221668]
[1765844401196,8.50129517,128.02,128.0,61.9]
[1765844401608,0.69,128.01,128.0,61.9]
[1765844401823,0.69,128.01,128.0,69.7125]
[1765844402328,0.69,128.01,128.0,7.8125]
[1765844403510,0.69,128.01,127.99,74.11332306]
[1765844404434,0.69,128.01,127.99,69.71280888]
[1765844405322,9.27000001,128.03,128.0,4.40051418]
[1765844405527,0.71,128.02,128.0,12.21246618]
[1765844405732,0.71,128.02,128.0,7.811952]
[1765844406633,0.71,128.02,127.99,61.9]
[1765844406835,0.71,128.02,127.99,69.71291072]
[1765844407505,0.71,128.02,128.0,7.81246967]
[1765844408312,0.71,128.02,128.0,12.21298385]
[1765844408640,0.71,128.02,128.0,7.81246967]
[1765844408810,8.521302,128.02,127.99,74.11343061]
[1765844409214,0.71,128.01,127.99,74.11343061]
[1765844417620,0.71,128.01,127.99,69.71291643]
[1765844417823,0.71,128.01,127.99,74.11343061]
[1765844418851,0.71,128.01,127.99,74.82343061]
[1765844419028,0.71,128.01,127.99,69.71291643]
[1765844426261,7.8109798,128.03,127.99,69.71291643]
[1765844426561,7.8109798,128.03,128.01,4.40051418]
[1765844426562,1e-08,128.03,128.01,4.40051418]
[1765844426746,0.71000001,128.03,128.01,4.40051418]
[1765844427671,0.71000001,128.03,128.01,7.81188969]
[1765844431264,0.68000001,128.03,128.01,11.32840557]
[1765844431965,1e-08,128.03,128.02,16.53360708]
[1765844432875,1e-08,128.03,128.02,24.34488656]
[1765844435065,1e-08,128.03,128.02,33.15483148]
[1765844436133,1e-08,128.03,128.02,35.97134736]
[1765844436338,0.1,128.05,128.03,8.80994492]
[1765844436550,0.1,128.05,128.04,5.63303176]
[1765844436766,0.1,128.05,128.04,6.30303176]
[1765844437061,0.1,128.05,128.04,14.11309111]
[1765844438749,0.1,128.05,128.04,11.29657523]
[1765844440067,0.1,128.05,128.04,14.11309111]
[1765844440966,0.1,128.05,128.04,76.01309111]
[1765844442259,0.1,128.07,128.06,13.0470912]
[1765844442463,0.1,128.07,128.06,77.76360708]
[1765844442689,0.1,128.07,128.06,78.43360708]
[1765844443363,0.1,128.07,128.06,86.24244668]
[1765844443566,0.2,128.08,128.06,114.57449061]
[1765844443764,0.2,128.08,128.07,3.48651588]
[1765844445258,0.2,128.08,128.07,11.29474575]
[1765844446874,0.2,128.08,128.07,73.19474575]
[1765844448146,0.2,128.08,128.07,70.37822987]
[1765844448352,0.2,128.08,128.07,73.19474575]
[1765844449273,0.79,128.1,128.09,13.0470912]
[1765844449274,0.1,128.1,128.09,13.0470912]
[1765844449454,0.1,128.1,128.09,15.86360708]
[1765844449774,0.1,128.1,128.09,24.34061777]
[1765844450570,0.1,128.1,128.09,32.90061777]
[1765844451242,0.1,128.1,128.09,32.23061777]
[1765844452747,0.1,128.1,128.09,94.13061777]
[1765844453271,0.1,128.1,128.09,91.31410189]
[1765844453472,0.1,128.1,128.09,94.13061777]
[1765844454775,0.1,128.1,128.09,91.31410189]
[1765844454976,0.1,128.1,128.09,94.13061777]
[1765844455974,0.1,128.1,128.09,94.80061777]
[1765844458176,0.1,128.13,128.09,116.36466038]
[1765844458359,0.1,128.13,128.12,2.81651588]
[1765844458681,0.1,128.13,128.12,11.37651588]
[1765844458851,0.1,128.13,128.12,12.04651588]
[1765844459052,0.1,128.13,128.12,19.85169852]
[1765844460083,0.1,128.13,128.12,28.66164344]
[1765844461084,1e-08,128.13,128.12,41.70873464]
[1765844461283,0.1,128.16,128.13,8.80994492]
[1765844461484,0.1,128.17,128.15,18.66566314]
[1765844461689,0.1,128.17,128.16,22.98851686]
[1765844461987,0.1,128.17,128.16,23.65851686]
[1765844462190,0.1,128.17,128.16,18.03994492]
[1765844462377,0.1,128.17,128.16,20.17923089]
[1765844462789,0.1,128.18,128.16,23.65851686]
[1765844462994,0.05361502,128.19,128.18,8.80994492]
[1765844463306,0.2,128.21,128.2,13.0470912]
[1765844463463,0.2,128.21,128.2,24.41637717]
[1765844463997,0.86,128.21,128.2,24.41637717]
[1765844464288,0.86,128.21,128.18,10.61081506]
[1765844464474,0.66,128.2,128.18,10.61081506]
[1765844464663,0.66,128.2,128.17,19.17116625]
[1765844464861,0.66,128.2,128.17,11.36928597]
[1765844465263,0.66,128.2,128.18,10.61073406]
[1765844465881,0.2,128.21,128.19,11.36928597]
[1765844466069,0.2,128.21,128.2,2.80928597]
[1765844466480,0.86,128.21,128.2,2.80928597]
[1765844467175,0.86,128.21,128.2,10.60959798]
[1765844467867,0.86,128.21,128.18,7.80145205]
[1765844468070,0.66,128.2,128.18,10.61073802]
[1765844468285,0.66,128.2,128.19,7.8009205]
[1765844469198,0.66,128.2,128.19,10.61020647]
[1765844470000,0.66,128.2,128.18,7.80134871]
[1765844470175,0.66,128.2,128.17,10.61121271]
[1765844470370,8.46043283,128.2,128.17,7.80192674]
[1765844470595,0.66,128.2,128.17,7.80192674]
[1765844470804,0.66,128.19,128.17,7.80192674]
[1765844470977,0.66,128.19,128.18,7.80152909]
[1765844472277,0.66,128.19,128.18,10.61081506]
[1765844472803,0.86,128.21,128.18,10.61081506]
[1765844472986,0.86,128.21,128.2,2.80928597]
[1765844473186,0.2,128.21,128.2,2.80928597]
[1765844473390,0.2,128.21,128.2,65.37928597]
[1765844473602,0.2,128.21,128.2,73.93928597]
[1765844474076,0.2,128.21,128.2,81.73959798]
[1765844475489,0.2,128.21,128.2,81.06959798]
[1765844476992,0.2,128.21,128.2,78.26031201]
[1765844477192,0.2,128.21,128.2,81.06959798]
[1765844478307,0.2,128.21,128.2,78.26031201]
[1765844478505,0.2,128.21,128.2,81.06959798]
[1765844480907,0.86,128.21,128.2,78.26031201]
[1765844481081,0.86,128.21,128.2,69.70031201]
[1765844481284,0.86,128.21,128.2,72.50959798]
[1765844482503,0.86,128.21,128.2,10.60959798]
[1765844482904,0.2,128.21,128.2,10.60959798]
[1765844483720,0.2,128.21,128.2,19.16959798]
[1765844483888,0.86,128.21,128.2,16.36031201]
[1765844484094,0.2,128.21,128.2,19.16959798]
[1765844487343,0.2,128.21,128.2,16.36031201]
[1765844487505,0.86,128.21,128.2,19.16959798]
[1765844488620,0.86,128.21,128.2,81.06959798]
[1765844489125,0.2,128.21,128.2,81.06959798]
[1765844489525,0.2,128.21,128.2,82.64777743]
[1765844489726,0.86,128.21,128.2,82.64777743]
[1765844490022,5.24746542,128.21,128.16,23.89368625]
[1765844490323,0.66,128.2,128.19,7.8009205]
[1765844490525,0.66,128.2,128.19,12.18838592]
[1765844490700,0.2,128.21,128.2,7.80031201]
[1765844490896,0.86,128.21,128.2,7.80031201]
[1765844491100,0.2,128.21,128.2,12.18777743]
[1765844492410,0.89,128.21,128.2,12.18777743]
[1765844493710,0.89,128.21,128.2,7.80031201]
[1765844493911,0.89,128.21,128.19,7.8007025]
[1765844494111,0.69,128.2,128.19,7.8007025]
[1765844495245,0.69,128.2,128.19,12.18816792]
[1765844495430,0.69,128.2,128.19,7.8007025]
[1765844499226,0.2,128.21,128.19,94.29046919]
[1765844499527,0.2,128.21,128.2,12.94746542]
[1765844499922,0.2,128.21,128.2,4.38746542]
[1765844501117,0.2,128.21,128.2,12.18777743]
[1765844501731,0.2,128.21,128.2,12.88777743]
[1765844503308,0.2,128.21,128.2,69.70031201]
[1765844503510,0.2,128.21,128.2,74.08777743]
[1765844503713,0.2,128.21,128.2,74.78777743]
[1765844506852,0.2,128.21,128.2,83.59772235]
[1765844510652,1e-08,128.21,128.2,87.98518777]
[1765844510853,0.11851919,128.23,128.21,70.70994491]
[1765844511058,0.11851919,128.23,128.22,18.03493084]
[1765844511238,0.11851919,128.23,128.22,12.94746542]
[1765844511557,0.80851919,128.23,128.22,4.38746542]
[1765844512228,0.80851919,128.23,128.21,74.84746541]
[1765844512629,0.80851919,128.23,128.22,12.18656072]
[1765844514736,0.11851919,128.23,128.22,12.18656072]
[1765844515263,0.11851919,128.23,128.22,74.08656071]
[1765844515657,0.11851919,128.23,128.22,69.69909529]
[1765844515858,0.80851919,128.23,128.22,69.69909529]
[1765844520367,0.11851919,128.23,128.22,74.08656071]
[1765844520667,0.80851919,128.23,128.22,69.69909529]
[1765844521046,0.11851919,128.23,128.22,69.69909529]
[1765844521970,0.77851919,128.23,128.22,69.69909529]
[1765844522175,0.77851919,128.23,128.2,69.69997461]
[1765844522573,0.77851919,128.23,128.21,7.79967807]
[1765844522939,0.77851919,128.23,128.2,78.25999477]
[1765844523145,8.57705456,128.23,128.2,70.45999999]
[1765844523662,0.66,128.22,128.18,61.89999999]
[1765844524064,5.04746542,128.22,128.18,69.70148508]
[1765844524374,8.45965059,128.22,128.18,74.0889505]
[1765844524673,0.66,128.21,128.18,74.0889505]
[1765844525056,0.66,128.21,128.18,61.89999999]
[1765844525293,0.66,128.21,128.18,66.28746541]
[1765844525560,0.66,128.21,128.18,74.08895325]
[1765844525952,0.66,128.21,128.19,4.38746542]
[1765844526370,0.66,128.21,128.2,4.38746542]
[1765844526882,0.66,128.21,128.2,4.38706318]
[1765844527481,0.11851919,128.23,128.2,4.38706318]
[1765844527482,8.61786414,128.25,128.2,4.38706318]
[1765844528250,8.61786414,128.25,128.2,12.18735019]
[1765844529375,27.95370126,128.24,128.2,12.18735019]
[1765844529682,8.45849582,128.23,128.2,12.18735019]
[1765844530781,0.66,128.22,128.2,12.18735019]
[1765844530981,0.66,128.22,128.2,74.08735018]
[1765844531983,27.95370126,128.24,128.2,74.08735018]
[1765844532281,0.66,128.23,128.2,74.08735018]
[1765844532984,8.45858883,128.23,128.2,74.08735018]
[1765844536158,8.45858883,128.23,128.2,66.28706317]
[1765844536691,8.45858883,128.23,128.2,74.08734863]
[1765844539690,40.34079246,128.24,128.18,61.89999999]
[1765844539862,4.38706318,128.2,128.16,61.89999999]
[1765844540060,9.22,128.22,128.13,9.51994492]
[1765844540061,4.38706318,128.17,128.13,61.89999999]
[1765844540267,12.94706318,128.16,128.12,7.80479607]
[1765844540472,8.56,128.16,128.12,7.80479607]
[1765844540785,9.22,128.16,128.13,7.8045322]
[1765844540986,0.66,128.22,128.16,8.80994492]
[1765844541169,0.66,128.22,128.2,4.38706318]
[1765844541990,8.45929553,128.22,128.2,4.38706318]
[1765844542887,8.45929553,128.22,128.21,4.38706318]
[1765844545984,8.45929553,128.22,128.19,8.51073819]
[1765844546294,8.45929553,128.22,128.21,4.38706318]
[1765844547093,0.66,128.22,128.21,4.38706318]
[1765844549389,0.66,128.22,128.21,2.80755427]
[1765844553209,0.66,128.22,128.2,7.80024348]
[1765844553378,0.66,128.22,128.21,2.80755427]
[1765844557908,0.66,128.22,128.2,7.80024348]
[1765844558107,0.66,128.22,128.21,2.80755427]
[1765844559209,8.4590953,128.22,128.19,61.89999999]
[1765844559394,8.56,128.21,128.19,61.89999999]
[1765844559580,9.23,128.21,128.18,2.80755427]
[1765844559786,0.67,128.2,128.18,2.80755427]
[1765844561185,8.4708344,128.2,128.18,2.80755427]
[1765844561403,0.67,128.19,128.18,2.80755427]
[1765844562915,9.23,128.19,128.16,61.89999999]
[1765844563217,7.80152909,128.18,128.17,2.80755427]
[1765844563514,8.47152909,128.18,128.16,64.70755426]
[1765844563811,9.23,128.17,128.16,2.80755427]
[1765844564116,9.23,128.17,128.13,2.80755427]
[1765844564410,0.67,128.16,128.13,2.80755427]
[1765844564716,8.56,128.15,128.12,10.61261789]
[1765844564920,8.56,128.15,128.13,2.80755427]
[1765844565214,9.23,128.15,128.13,2.80755427]
[1765844565398,12.03341349,128.15,128.13,2.80755427]
[1765844565710,0.67,128.14,128.13,2.80755427]
[1765844566096,11.36341349,128.15,128.13,2.80755427]
[1765844566301,0.67,128.14,128.13,2.80755427]
[1765844567304,0.67,128.14,128.12,2.80755427]
[1765844568307,8.47397389,128.14,128.12,2.80755427]
[1765844568512,0.67,128.14,128.12,2.80755427]
[1765844569304,9.23,128.17,128.13,3.50755427]
[1765844569618,0.67,128.16,128.13,65.40755426]
[1765844570488,0.67,128.16,128.13,72.5119756]
[1765844570812,0.67,128.16,128.14,3.50755427]
[1765844571011,0.67,128.16,128.14,2.80755427]
[1765844572921,0.67,128.16,128.13,73.2119756]
[1765844573404,0.67,128.16,128.13,72.5119756]
[1765844573612,0.67,128.16,128.14,0.7]
[1765844574622,16.36230976,128.17,128.14,62.59999999]
[1765844574822,17.03230976,128.17,128.14,62.59999999]
[1765844575517,0.67,128.16,128.14,62.59999999]
[1765844575701,0.67,128.16,128.14,61.89999999]
[1765844575905,0.67,128.16,128.14,62.59999999]
[1765844577320,0.67,128.16,128.14,61.89999999]
[1765844578021,7.80230976,128.17,128.14,69.7038749]
[1765844578224,7.80230976,128.17,128.15,0.7]
[1765844578523,8.47230976,128.17,128.15,0.7]
[1765844578726,8.47230976,128.17,128.14,73.21142917]
[1765844579217,0.67,128.17,128.14,73.21142917]
[1765844579407,0.67,128.17,128.15,0.7]
[1765844579718,0.67,128.17,128.14,72.51142917]
[1765844579936,0.67,128.17,128.14,73.21142917]
[1765844580226,8.47215321,128.17,128.1,73.21363589]
[1765844580525,2.80755427,128.16,128.1,65.40755426]
[1765844580693,8.56,128.15,128.1,65.40755426]
[1765844580898,9.23,128.15,128.1,65.40755426]
[1765844581204,8.47411809,128.14,128.11,8.5057482]
[1765844583240,8.56,128.15,128.12,3.48755427]
[1765844583402,8.56,128.15,128.11,7.8057482]
[1765844583403,7.8030529,128.16,128.13,3.48755427]
[1765844583602,7.8023671,128.17,128.14,2.80755427]
[1765844583824,8.5123671,128.17,128.14,3.48755427]
[1765844585225,8.5123671,128.17,128.14,8.48393434]
[1765844587728,0.71,128.16,128.13,69.70449169]
[1765844587905,0.71,128.16,128.13,70.38449169]
[1765844588906,0.71,128.16,128.14,0.68]
[1765844589523,0.71,128.16,128.14,62.57999999]
[1765844590726,7.8023671,128.17,128.14,62.57999999]
[1765844590927,8.5123671,128.17,128.14,62.57999999]
[1765844591229,7.8023671,128.17,128.14,62.57999999]
[1765844591403,0.71,128.16,128.14,62.57999999]
[1765844592729,0.71,128.16,128.14,61.89999999]
[1765844592929,39.39162689,128.16,128.14,61.89999999]
[1765844593222,17.07291065,128.16,128.14,61.89999999]
[1765844594209,9.27,128.16,128.14,61.89999999]
[1765844594412,8.56,128.16,128.15,0.68]
[1765844594614,7.80239183,128.17,128.15,0.68]
[1765844594816,8.51239183,128.17,128.14,69.70390108]
[1765844595016,8.51239183,128.17,128.14,73.19575091]
[1765844595632,8.51239183,128.17,128.14,70.38390108]
[1765844595818,8.51239183,128.17,128.14,62.57999999]
[1765844596021,0.71,128.16,128.14,61.89999999]
[1765844596540,3.52184983,128.16,128.14,61.89999999]
[1765844596707,12.08184983,128.16,128.14,61.89999999]
[1765844596912,0.71,128.15,128.14,61.89999999]
[1765844597116,9.27,128.16,128.14,61.89999999]
[1765844597326,0.71,128.15,128.14,61.89999999]
[1765844597719,16.36322201,128.16,128.14,61.89999999]
[1765844597929,17.07322201,128.16,128.14,61.89999999]
[1765844598124,8.56,128.16,128.14,62.57999999]
[1765844598309,7.80233162,128.17,128.14,65.39184982]
[1765844598508,8.51233162,128.17,128.14,65.39184982]
[1765844598834,8.51233162,128.17,128.14,62.57999999]
[1765844599332,0.71,128.16,128.14,61.89999999]
[1765844599532,8.51233162,128.17,128.14,62.57999999]
[1765844599713,0.71,128.16,128.14,62.57999999]
[1765844599914,7.80233162,128.17,128.14,70.38390236]
[1765844600116,8.51233162,128.17,128.14,70.38390236]
[1765844600310,0.71,128.17,128.14,72.51575219]
[1765844600516,0.71,128.17,128.15,0.68]
[1765844600932,29.40882849,128.18,128.15,0.68]
[1765844601233,30.11882849,128.18,128.15,0.68]
[1765844601432,0.71,128.17,128.15,62.57999999]
[1765844602212,30.11882849,128.18,128.15,62.57999999]
[1765844603134,0.71,128.17,128.15,61.89999999]
[1765844603442,8.51216942,128.17,128.15,61.89999999]
[1765844603737,29.40890831,128.18,128.15,61.89999999]
[1765844603919,9.27,128.18,128.16,0.68]
[1765844604117,17.07153609,128.18,128.15,73.1951859]
[1765844604743,9.27,128.18,128.16,0.68]
[1765844605046,20.84769995,128.2,128.16,3.49184983]